{"text_format":"1","workbook":"xlsx","n_sheets":4,"sheets":["Základní údaje","Rozpis úklidu","Karty úklidu","Činnosti úklidu"],"not_rendered":{"charts":0,"images":0,"macros":1,"external_links":0,"defined_names":4,"comments":2,"pivot_tables":0},"unopened":[],"bounds":{"document_bytes":16777216,"sheet_cells":100000,"rows_first":2000,"rows_last":500,"rows_between":2000,"halvings":0,"cell_chars":16384,"cell_head_chars":4096},"cells_cut":0,"cells_raw":0,"read":"whole","date_system":"1900"}

{"sheet":"Základní údaje","index":0,"n_rows":15,"n_cols":8,"rows_kept":15,"cut":false,"hidden":false,"merged":[[8,3,8,6],[1,0,1,1]]}
["kolej: University hotel, VŠE"]
["OBDOBÍ:"]
["2020-05-01","2024-05-31"]
["Identifikace subjektu podávajícího nabídku:"]
["Název subjektu:"]
["IČ:"]
["Sídlo:"]
["Zapsaná v:",";"]
[null,null,null,"Předpoklad roční inflace"]
[null,null,null,"1. rok","2. rok","3. rok","4. rok"]
["CENA pracovní dny [Kč/hodinu/člověka]:",null,{"$f":"IF(B11<>0,B12/B11,0)","v":0},2.5000000000000001E-2,2.5000000000000001E-2,2.5000000000000001E-2,2.5000000000000001E-2]
["CENA víkendy [Kč/hodinu/člověka]:",null,{"$f":"IF(B11<>0,(5*B11+2*B12)/7/B11,0)","v":0},1,{"$f":"1+E11","v":1.0249999999999999},{"$f":"1+F11","v":1.0249999999999999},1.0249999999999999]
[null,null,null,1,{"$f":"+D13*E12","v":1.0249999999999999},{"$f":"+E13*F12","v":1.0506249999999999},1.0768906249999999,{"$f":"SUM(D13:G13)/4","v":1.0381289062499999}]
[]
["CENA CELKEM ZA ZAKÁZKU:",{"$f":"'Rozpis úklidu'!B81:D81","v":0}]

{"sheet":"Rozpis úklidu","index":1,"n_rows":152,"n_cols":19,"rows_kept":152,"cut":false,"hidden":false,"merged":[[80,1,80,3]]}
[{"$f":"'Základní údaje'!A1","v":"kolej: University hotel, VŠE"},{"$f":"'Základní údaje'!A2","v":"OBDOBÍ:"},{"$f":"'Základní údaje'!A3","v":"2020-05-01"},{"$f":"'Základní údaje'!B3","v":"2024-05-31"}]
["Cena za 1 úklidovou hodinu:",{"$f":"'Základní údaje'!B11","v":0},"Kč/hod."]
["Úklidová jednotka","plocha\n[m²]","kusy\n[-]","počet\núklidových jednotek","CELKEM\n[m²]\n[ks]","uklízí se","počet úklidů","sezonní\ntýden\nod","sezonní\ntýden\ndo","uklízí se v\npracovní dny","uklízí se o\nvíkendech","Popis činnosti","Zadavatelem doporučený čas na úklidovou jednotku\n[min]","Uchazečem navrhovaný čas na úklidovou jednotku\n[min.]","celkový čas úklidu všech úklidových jednotek\n[hod.]","Cena za úklidovou jednotku\n[Kč]","cena celkem za všechny úklidové jednotky \n(prac. dny)\n[Kč]","Cena celkem za období úklidu\n[Kč]","Poznámka"]
["Hala + recepce + WC",120,null,1,{"$f":"B4*D4+C4*D4","v":120},"denně",2,null,null,1,1,"Úklidová činnost č. 1; 3 a 14",30,null,{"$f":"IF(N4=0,M4*D4/60,N4*D4/60)","v":0.5},{"$f":"ROUND(IF(N4=0,M4/60*$B$2,N4/60*$B$2),0)","v":0},{"$f":"P4*D4","v":0},{"$f":"IF(F4=\"denně\",Q4*G4*$B$77,IF(F4=\"týdně\",Q4*G4*$B$78,IF(F4=\"měsíčně\",Q4*G4*$B$79,IF(F4=\"čtvrtletně\",Q4*G4*4*$B$80,IF(F4=\"ročně\",Q4*G4*$B$80,G4*Q4*$B$80)))))*'Základní údaje'!$H$13*IF(K4=1,'Základní údaje'!$C$12,1)","v":0}]
["Sociální zařízení pro zaměstnance",4,null,1,4,"denně",1,null,null,1,0,"Úklidová činnost č. 14",6.666666666666667,null,0.11111111111111112,0,0,{"$f":"IF(F5=\"denně\",Q5*G5*$B$77,IF(F5=\"týdně\",Q5*G5*$B$78,IF(F5=\"měsíčně\",Q5*G5*$B$79,IF(F5=\"čtvrtletně\",Q5*G5*4*$B$80,IF(F5=\"ročně\",Q5*G5*$B$80,G5*Q5*$B$80)))))*'Základní údaje'!$H$13*IF(K5=1,'Základní údaje'!$C$12,1)","v":0}]
["Lobby",75,null,1,75,"denně",1,null,null,1,1,"Úklidová činnost č. 1",20,null,0.33333333333333331,0,0,{"$f":"IF(F6=\"denně\",Q6*G6*$B$77,IF(F6=\"týdně\",Q6*G6*$B$78,IF(F6=\"měsíčně\",Q6*G6*$B$79,IF(F6=\"čtvrtletně\",Q6*G6*4*$B$80,IF(F6=\"ročně\",Q6*G6*$B$80,G6*Q6*$B$80)))))*'Základní údaje'!$H$13*IF(K6=1,'Základní údaje'!$C$12,1)","v":0}]
["Výtah",null,1,1,1,"denně",2,null,null,1,1,"Úklidová činnost č. 11",5,null,8.3333333333333329E-2,0,0,{"$f":"IF(F7=\"denně\",Q7*G7*$B$77,IF(F7=\"týdně\",Q7*G7*$B$78,IF(F7=\"měsíčně\",Q7*G7*$B$79,IF(F7=\"čtvrtletně\",Q7*G7*4*$B$80,IF(F7=\"ročně\",Q7*G7*$B$80,G7*Q7*$B$80)))))*'Základní údaje'!$H$13*IF(K7=1,'Základní údaje'!$C$12,1)","v":0}]
["Kancelář vedoucí",12,null,1,12,"denně",1,null,null,1,1,"Úklidová činnost č. 3",10,null,0.16666666666666666,0,0,{"$f":"IF(F8=\"denně\",Q8*G8*$B$77,IF(F8=\"týdně\",Q8*G8*$B$78,IF(F8=\"měsíčně\",Q8*G8*$B$79,IF(F8=\"čtvrtletně\",Q8*G8*4*$B$80,IF(F8=\"ročně\",Q8*G8*$B$80,G8*Q8*$B$80)))))*'Základní údaje'!$H$13*IF(K8=1,'Základní údaje'!$C$12,1)","v":0}]
["Před hotelem",null,1,1,1,"denně",1,null,null,1,1,"Zamést, sebrat odpadky a nedopalky.",10,null,0.16666666666666666,0,0,{"$f":"IF(F9=\"denně\",Q9*G9*$B$77,IF(F9=\"týdně\",Q9*G9*$B$78,IF(F9=\"měsíčně\",Q9*G9*$B$79,IF(F9=\"čtvrtletně\",Q9*G9*4*$B$80,IF(F9=\"ročně\",Q9*G9*$B$80,G9*Q9*$B$80)))))*'Základní údaje'!$H$13*IF(K9=1,'Základní údaje'!$C$12,1)","v":0}]
["Za hotelem",null,1,1,1,"denně",1,null,null,1,1,"Zamést, sebrat odpadky a nedopalky.",10,null,0.16666666666666666,0,0,{"$f":"IF(F10=\"denně\",Q10*G10*$B$77,IF(F10=\"týdně\",Q10*G10*$B$78,IF(F10=\"měsíčně\",Q10*G10*$B$79,IF(F10=\"čtvrtletně\",Q10*G10*4*$B$80,IF(F10=\"ročně\",Q10*G10*$B$80,G10*Q10*$B$80)))))*'Základní údaje'!$H$13*IF(K10=1,'Základní údaje'!$C$12,1)","v":0}]
["Prádelna",4,null,1,4,"denně",1,null,null,1,1,"Úklidová činnost č. 4",10,null,0.16666666666666666,0,0,{"$f":"IF(F11=\"denně\",Q11*G11*$B$77,IF(F11=\"týdně\",Q11*G11*$B$78,IF(F11=\"měsíčně\",Q11*G11*$B$79,IF(F11=\"čtvrtletně\",Q11*G11*4*$B$80,IF(F11=\"ročně\",Q11*G11*$B$80,G11*Q11*$B$80)))))*'Základní údaje'!$H$13*IF(K11=1,'Základní údaje'!$C$12,1)","v":0}]
["Kancelář zástupkyně",13,null,1,13,"týdně",1,null,null,1,0,"Úklidová činnost č. 3",10,null,0.16666666666666666,0,0,{"$f":"IF(F12=\"denně\",Q12*G12*$B$77,IF(F12=\"týdně\",Q12*G12*$B$78,IF(F12=\"měsíčně\",Q12*G12*$B$79,IF(F12=\"čtvrtletně\",Q12*G12*4*$B$80,IF(F12=\"ročně\",Q12*G12*$B$80,G12*Q12*$B$80)))))*'Základní údaje'!$H$13*IF(K12=1,'Základní údaje'!$C$12,1)","v":0}]
["Chodby",120,null,5,600,"týdně",3,null,null,1,1,"Úklidová činnost č. 1",20,null,1.6666666666666667,0,0,{"$f":"IF(F13=\"denně\",Q13*G13*$B$77,IF(F13=\"týdně\",Q13*G13*$B$78,IF(F13=\"měsíčně\",Q13*G13*$B$79,IF(F13=\"čtvrtletně\",Q13*G13*4*$B$80,IF(F13=\"ročně\",Q13*G13*$B$80,G13*Q13*$B$80)))))*'Základní údaje'!$H$13*IF(K13=1,'Základní údaje'!$C$12,1)","v":0}]
["Schodiště",17,null,5,85,"týdně",3,null,null,1,1,"Úklidová činnost č. 1",5,null,0.41666666666666669,0,0,{"$f":"IF(F14=\"denně\",Q14*G14*$B$77,IF(F14=\"týdně\",Q14*G14*$B$78,IF(F14=\"měsíčně\",Q14*G14*$B$79,IF(F14=\"čtvrtletně\",Q14*G14*4*$B$80,IF(F14=\"ročně\",Q14*G14*$B$80,G14*Q14*$B$80)))))*'Základní údaje'!$H$13*IF(K14=1,'Základní údaje'!$C$12,1)","v":0}]
["Studovna",15,null,1,15,"týdně",3,null,null,1,0,"Úklidová činnost č. 3",5,null,8.3333333333333329E-2,0,0,{"$f":"IF(F15=\"denně\",Q15*G15*$B$77,IF(F15=\"týdně\",Q15*G15*$B$78,IF(F15=\"měsíčně\",Q15*G15*$B$79,IF(F15=\"čtvrtletně\",Q15*G15*4*$B$80,IF(F15=\"ročně\",Q15*G15*$B$80,G15*Q15*$B$80)))))*'Základní údaje'!$H$13*IF(K15=1,'Základní údaje'!$C$12,1)","v":0}]
["Úklidová místnost + sociální zařízení",24,null,1,24,"týdně",1,null,null,1,0,"Úklidová činnost č. 1;  14",30,null,0.5,0,0,{"$f":"IF(F16=\"denně\",Q16*G16*$B$77,IF(F16=\"týdně\",Q16*G16*$B$78,IF(F16=\"měsíčně\",Q16*G16*$B$79,IF(F16=\"čtvrtletně\",Q16*G16*4*$B$80,IF(F16=\"ročně\",Q16*G16*$B$80,G16*Q16*$B$80)))))*'Základní údaje'!$H$13*IF(K16=1,'Základní údaje'!$C$12,1)","v":0}]
["Sklad špinavého prádla",4,null,1,4,"týdně",2,null,null,1,0,"Úklidová činnost č. 3",10,null,0.16666666666666666,0,0,{"$f":"IF(F17=\"denně\",Q17*G17*$B$77,IF(F17=\"týdně\",Q17*G17*$B$78,IF(F17=\"měsíčně\",Q17*G17*$B$79,IF(F17=\"čtvrtletně\",Q17*G17*4*$B$80,IF(F17=\"ročně\",Q17*G17*$B$80,G17*Q17*$B$80)))))*'Základní údaje'!$H$13*IF(K17=1,'Základní údaje'!$C$12,1)","v":0}]
["Společenská místnost",49,null,1,49,"týdně",1,null,null,1,0,"Úklidová činnost č. 3",16.333333333333332,null,0.2722222222222222,0,0,{"$f":"IF(F18=\"denně\",Q18*G18*$B$77,IF(F18=\"týdně\",Q18*G18*$B$78,IF(F18=\"měsíčně\",Q18*G18*$B$79,IF(F18=\"čtvrtletně\",Q18*G18*4*$B$80,IF(F18=\"ročně\",Q18*G18*$B$80,G18*Q18*$B$80)))))*'Základní údaje'!$H$13*IF(K18=1,'Základní údaje'!$C$12,1)","v":0}]
["Pokoj A - Buňka pro handicapované",21,null,1,21,"týdně",3,null,null,1,1,"Úklidová činnost č. 9",10,null,0.16666666666666666,0,0,{"$f":"IF(F19=\"denně\",Q19*G19*$B$77,IF(F19=\"týdně\",Q19*G19*$B$78,IF(F19=\"měsíčně\",Q19*G19*$B$79,IF(F19=\"čtvrtletně\",Q19*G19*4*$B$80,IF(F19=\"ročně\",Q19*G19*$B$80,G19*Q19*$B$80)))))*'Základní údaje'!$H$13*IF(K19=1,'Základní údaje'!$C$12,1)","v":0}]
["Pokoj B - Buňka pro handicapované",10,null,1,10,"týdně",3,null,null,1,1,"Úklidová činnost č. 9",10,null,0.16666666666666666,0,0,{"$f":"IF(F20=\"denně\",Q20*G20*$B$77,IF(F20=\"týdně\",Q20*G20*$B$78,IF(F20=\"měsíčně\",Q20*G20*$B$79,IF(F20=\"čtvrtletně\",Q20*G20*4*$B$80,IF(F20=\"ročně\",Q20*G20*$B$80,G20*Q20*$B$80)))))*'Základní údaje'!$H$13*IF(K20=1,'Základní údaje'!$C$12,1)","v":0}]
["Chodba + kuchyňka - Buňka pro handicapované",15,null,1,15,"týdně",3,null,null,1,1,"Úklidová činnost č. 7",10,null,0.16666666666666666,0,0,{"$f":"IF(F21=\"denně\",Q21*G21*$B$77,IF(F21=\"týdně\",Q21*G21*$B$78,IF(F21=\"měsíčně\",Q21*G21*$B$79,IF(F21=\"čtvrtletně\",Q21*G21*4*$B$80,IF(F21=\"ročně\",Q21*G21*$B$80,G21*Q21*$B$80)))))*'Základní údaje'!$H$13*IF(K21=1,'Základní údaje'!$C$12,1)","v":0}]
["Sociální zařízení - Buňka pro handicapované",6,null,1,6,"týdně",3,null,null,1,1,"Úklidová činnost č. 14; 15",15,null,0.25,0,0,{"$f":"IF(F22=\"denně\",Q22*G22*$B$77,IF(F22=\"týdně\",Q22*G22*$B$78,IF(F22=\"měsíčně\",Q22*G22*$B$79,IF(F22=\"čtvrtletně\",Q22*G22*4*$B$80,IF(F22=\"ročně\",Q22*G22*$B$80,G22*Q22*$B$80)))))*'Základní údaje'!$H$13*IF(K22=1,'Základní údaje'!$C$12,1)","v":0}]
["1L pokoj - HOTEL",17,null,5,85,"týdně",2,null,null,1,1,"Úklidová činnost č. 8",20,null,1.6666666666666667,0,0,{"$f":"IF(F23=\"denně\",Q23*G23*$B$77,IF(F23=\"týdně\",Q23*G23*$B$78,IF(F23=\"měsíčně\",Q23*G23*$B$79,IF(F23=\"čtvrtletně\",Q23*G23*4*$B$80,IF(F23=\"ročně\",Q23*G23*$B$80,G23*Q23*$B$80)))))*'Základní údaje'!$H$13*IF(K23=1,'Základní údaje'!$C$12,1)","v":0}]
["2L pokoj typ A - HOTEL",22,null,6,132,"týdně",2,null,null,1,1,"Úklidová činnost č. 8",37.5,null,3.75,0,0,{"$f":"IF(F24=\"denně\",Q24*G24*$B$77,IF(F24=\"týdně\",Q24*G24*$B$78,IF(F24=\"měsíčně\",Q24*G24*$B$79,IF(F24=\"čtvrtletně\",Q24*G24*4*$B$80,IF(F24=\"ročně\",Q24*G24*$B$80,G24*Q24*$B$80)))))*'Základní údaje'!$H$13*IF(K24=1,'Základní údaje'!$C$12,1)","v":0}]
["2L pokoj typ B - HOTEL",23,null,15,345,"týdně",2,null,null,1,1,"Úklidová činnost č. 8",37.5,null,9.375,0,0,{"$f":"IF(F25=\"denně\",Q25*G25*$B$77,IF(F25=\"týdně\",Q25*G25*$B$78,IF(F25=\"měsíčně\",Q25*G25*$B$79,IF(F25=\"čtvrtletně\",Q25*G25*4*$B$80,IF(F25=\"ročně\",Q25*G25*$B$80,G25*Q25*$B$80)))))*'Základní údaje'!$H$13*IF(K25=1,'Základní údaje'!$C$12,1)","v":0}]
["2L pokoj typ C - HOTEL",25,null,6,150,"týdně",2,null,null,1,1,"Úklidová činnost č. 8",40.833333333333336,null,4.083333333333333,0,0,{"$f":"IF(F26=\"denně\",Q26*G26*$B$77,IF(F26=\"týdně\",Q26*G26*$B$78,IF(F26=\"měsíčně\",Q26*G26*$B$79,IF(F26=\"čtvrtletně\",Q26*G26*4*$B$80,IF(F26=\"ročně\",Q26*G26*$B$80,G26*Q26*$B$80)))))*'Základní údaje'!$H$13*IF(K26=1,'Základní údaje'!$C$12,1)","v":0}]
["2L pokoj typ D - HOTEL",25,null,10,250,"týdně",2,null,null,1,1,"Úklidová činnost č. 8",37.5,null,6.25,0,0,{"$f":"IF(F27=\"denně\",Q27*G27*$B$77,IF(F27=\"týdně\",Q27*G27*$B$78,IF(F27=\"měsíčně\",Q27*G27*$B$79,IF(F27=\"čtvrtletně\",Q27*G27*4*$B$80,IF(F27=\"ročně\",Q27*G27*$B$80,G27*Q27*$B$80)))))*'Základní údaje'!$H$13*IF(K27=1,'Základní údaje'!$C$12,1)","v":0}]
["2L pokoj typ E - HOTEL",26,null,5,130,"týdně",2,null,null,1,1,"Úklidová činnost č. 8",37.5,null,3.125,0,0,{"$f":"IF(F28=\"denně\",Q28*G28*$B$77,IF(F28=\"týdně\",Q28*G28*$B$78,IF(F28=\"měsíčně\",Q28*G28*$B$79,IF(F28=\"čtvrtletně\",Q28*G28*4*$B$80,IF(F28=\"ročně\",Q28*G28*$B$80,G28*Q28*$B$80)))))*'Základní údaje'!$H$13*IF(K28=1,'Základní údaje'!$C$12,1)","v":0}]
["3L pokoj (bez kuchyňky) - HOTEL",24,null,2,48,"týdně",2,null,null,1,1,"Úklidová činnost č. 8",30,null,1,0,0,{"$f":"IF(F29=\"denně\",Q29*G29*$B$77,IF(F29=\"týdně\",Q29*G29*$B$78,IF(F29=\"měsíčně\",Q29*G29*$B$79,IF(F29=\"čtvrtletně\",Q29*G29*4*$B$80,IF(F29=\"ročně\",Q29*G29*$B$80,G29*Q29*$B$80)))))*'Základní údaje'!$H$13*IF(K29=1,'Základní údaje'!$C$12,1)","v":0}]
["3L pokoj (s kuchyňkou) - HOTEL",25,null,5,125,"týdně",2,null,null,1,1,"Úklidová činnost č. 8",37.5,null,3.125,0,0,{"$f":"IF(F30=\"denně\",Q30*G30*$B$77,IF(F30=\"týdně\",Q30*G30*$B$78,IF(F30=\"měsíčně\",Q30*G30*$B$79,IF(F30=\"čtvrtletně\",Q30*G30*4*$B$80,IF(F30=\"ročně\",Q30*G30*$B$80,G30*Q30*$B$80)))))*'Základní údaje'!$H$13*IF(K30=1,'Základní údaje'!$C$12,1)","v":0}]
["Pokoj A - Buňka (3 x 2L pokoj)  HOTEL",15,null,1,15,"týdně",2,null,null,1,1,"Úklidová činnost č. 8",12.5,null,0.20833333333333334,0,0,{"$f":"IF(F31=\"denně\",Q31*G31*$B$77,IF(F31=\"týdně\",Q31*G31*$B$78,IF(F31=\"měsíčně\",Q31*G31*$B$79,IF(F31=\"čtvrtletně\",Q31*G31*4*$B$80,IF(F31=\"ročně\",Q31*G31*$B$80,G31*Q31*$B$80)))))*'Základní údaje'!$H$13*IF(K31=1,'Základní údaje'!$C$12,1)","v":0}]
["Pokoj B - Buňka (3 x 2L pokoj)  HOTEL",15,null,1,15,"týdně",2,null,null,1,1,"Úklidová činnost č. 8",12.5,null,0.20833333333333334,0,0,{"$f":"IF(F32=\"denně\",Q32*G32*$B$77,IF(F32=\"týdně\",Q32*G32*$B$78,IF(F32=\"měsíčně\",Q32*G32*$B$79,IF(F32=\"čtvrtletně\",Q32*G32*4*$B$80,IF(F32=\"ročně\",Q32*G32*$B$80,G32*Q32*$B$80)))))*'Základní údaje'!$H$13*IF(K32=1,'Základní údaje'!$C$12,1)","v":0}]
["Pokoj C - Buňka (3 x 2L pokoj)  HOTEL",14,null,1,14,"týdně",2,null,null,1,1,"Úklidová činnost č. 8",12.5,null,0.20833333333333334,0,0,{"$f":"IF(F33=\"denně\",Q33*G33*$B$77,IF(F33=\"týdně\",Q33*G33*$B$78,IF(F33=\"měsíčně\",Q33*G33*$B$79,IF(F33=\"čtvrtletně\",Q33*G33*4*$B$80,IF(F33=\"ročně\",Q33*G33*$B$80,G33*Q33*$B$80)))))*'Základní údaje'!$H$13*IF(K33=1,'Základní údaje'!$C$12,1)","v":0}]
["Chodba + kuchyňka - Buňka (3 x 2L pokoj) HOTEL",11,null,1,11,"týdně",2,null,null,1,1,"Úklidová činnost č. 5",12.5,null,0.20833333333333334,0,0,{"$f":"IF(F34=\"denně\",Q34*G34*$B$77,IF(F34=\"týdně\",Q34*G34*$B$78,IF(F34=\"měsíčně\",Q34*G34*$B$79,IF(F34=\"čtvrtletně\",Q34*G34*4*$B$80,IF(F34=\"ročně\",Q34*G34*$B$80,G34*Q34*$B$80)))))*'Základní údaje'!$H$13*IF(K34=1,'Základní údaje'!$C$12,1)","v":0}]
["Sociální zařízení + WC -  - Buňka (3 x 2L pokoj) HOTEL",5,null,1,5,"týdně",2,null,null,1,1,"Úklidová činnost č. 14; 15",12.5,null,0.20833333333333334,0,0,{"$f":"IF(F35=\"denně\",Q35*G35*$B$77,IF(F35=\"týdně\",Q35*G35*$B$78,IF(F35=\"měsíčně\",Q35*G35*$B$79,IF(F35=\"čtvrtletně\",Q35*G35*4*$B$80,IF(F35=\"ročně\",Q35*G35*$B$80,G35*Q35*$B$80)))))*'Základní údaje'!$H$13*IF(K35=1,'Základní údaje'!$C$12,1)","v":0}]
["Úklid dlouhodobých pobytů",null,1,60,{"$f":"B36*D36+C36*D36","v":60},"týdně",3,null,null,1,1,"Úklidová činnost č. 9",12.5,null,{"$f":"IF(N36=0,M36*D36/60,N36*D36/60)","v":12.5},{"$f":"ROUND(IF(N36=0,M36/60*$B$2,N36/60*$B$2),0)","v":0},{"$f":"P36*D36","v":0},{"$f":"IF(F36=\"denně\",Q36*G36*$B$77,IF(F36=\"týdně\",Q36*G36*$B$78,IF(F36=\"měsíčně\",Q36*G36*$B$79,IF(F36=\"čtvrtletně\",Q36*G36*4*$B$80,IF(F36=\"ročně\",Q36*G36*$B$80,G36*Q36*$B$80)))))*'Základní údaje'!$H$13*IF(K36=1,'Základní údaje'!$C$12,1)","v":0}]
["Úklid pokojů po opravách, úpravách, malování",null,1,2,2,"týdně",1,null,null,1,null,"Úklidová činnost č. 8",10,null,0.33333333333333331,0,0,{"$f":"IF(F37=\"denně\",Q37*G37*$B$77,IF(F37=\"týdně\",Q37*G37*$B$78,IF(F37=\"měsíčně\",Q37*G37*$B$79,IF(F37=\"čtvrtletně\",Q37*G37*4*$B$80,IF(F37=\"ročně\",Q37*G37*$B$80,G37*Q37*$B$80)))))*'Základní údaje'!$H$13*IF(K37=1,'Základní údaje'!$C$12,1)","v":0}]
["Roztřídění a spočítání prádla",null,1,1,1,"týdně",2,null,null,1,0,"Roztřídění prádla dle druhú a spočítání kusů.",30,null,0.5,0,0,{"$f":"IF(F38=\"denně\",Q38*G38*$B$77,IF(F38=\"týdně\",Q38*G38*$B$78,IF(F38=\"měsíčně\",Q38*G38*$B$79,IF(F38=\"čtvrtletně\",Q38*G38*4*$B$80,IF(F38=\"ročně\",Q38*G38*$B$80,G38*Q38*$B$80)))))*'Základní údaje'!$H$13*IF(K38=1,'Základní údaje'!$C$12,1)","v":0}]
["Přemístění špinavého prádla do klecí",null,1,1,1,"týdně",2,null,null,1,0,"Naložení špinavého prádla do klecí.",30,null,0.5,0,0,{"$f":"IF(F39=\"denně\",Q39*G39*$B$77,IF(F39=\"týdně\",Q39*G39*$B$78,IF(F39=\"měsíčně\",Q39*G39*$B$79,IF(F39=\"čtvrtletně\",Q39*G39*4*$B$80,IF(F39=\"ročně\",Q39*G39*$B$80,G39*Q39*$B$80)))))*'Základní údaje'!$H$13*IF(K39=1,'Základní údaje'!$C$12,1)","v":0}]
["Přejímka čistého prádla, naskladnění",null,1,1,1,"týdně",2,null,null,1,0,"Přejímka čistého prádla, kontrola množství, zanesení do skladu čistého prádla.",30,null,0.5,0,0,{"$f":"IF(F40=\"denně\",Q40*G40*$B$77,IF(F40=\"týdně\",Q40*G40*$B$78,IF(F40=\"měsíčně\",Q40*G40*$B$79,IF(F40=\"čtvrtletně\",Q40*G40*4*$B$80,IF(F40=\"ročně\",Q40*G40*$B$80,G40*Q40*$B$80)))))*'Základní údaje'!$H$13*IF(K40=1,'Základní údaje'!$C$12,1)","v":0}]
["Chodba suterén",50,null,1,50,"měsíčně",2,null,null,1,0,"Úklidová činnost č. 1",8.3333333333333339,null,0.1388888888888889,0,0,{"$f":"IF(F41=\"denně\",Q41*G41*$B$77,IF(F41=\"týdně\",Q41*G41*$B$78,IF(F41=\"měsíčně\",Q41*G41*$B$79,IF(F41=\"čtvrtletně\",Q41*G41*4*$B$80,IF(F41=\"ročně\",Q41*G41*$B$80,G41*Q41*$B$80)))))*'Základní údaje'!$H$13*IF(K41=1,'Základní údaje'!$C$12,1)","v":0}]
["Výlevky",2,null,5,10,"měsíčně",1,null,null,1,0,"Mytí výlevky",5,null,0.41666666666666669,0,0,{"$f":"IF(F42=\"denně\",Q42*G42*$B$77,IF(F42=\"týdně\",Q42*G42*$B$78,IF(F42=\"měsíčně\",Q42*G42*$B$79,IF(F42=\"čtvrtletně\",Q42*G42*4*$B$80,IF(F42=\"ročně\",Q42*G42*$B$80,G42*Q42*$B$80)))))*'Základní údaje'!$H$13*IF(K42=1,'Základní údaje'!$C$12,1)","v":0}]
["Sklad prádla a drogerie",54,null,1,54,"měsíčně",1,null,null,1,0,"Úklidová činnost č. 1",13.5,null,0.22500000000000001,0,0,{"$f":"IF(F43=\"denně\",Q43*G43*$B$77,IF(F43=\"týdně\",Q43*G43*$B$78,IF(F43=\"měsíčně\",Q43*G43*$B$79,IF(F43=\"čtvrtletně\",Q43*G43*4*$B$80,IF(F43=\"ročně\",Q43*G43*$B$80,G43*Q43*$B$80)))))*'Základní údaje'!$H$13*IF(K43=1,'Základní údaje'!$C$12,1)","v":0}]
["Úschovna zavazadel",16,null,1,16,"čtvrtletně",1,null,null,1,0,"Úklidová činnost č. 1",4,null,6.6666666666666666E-2,0,0,{"$f":"IF(F44=\"denně\",Q44*G44*$B$77,IF(F44=\"týdně\",Q44*G44*$B$78,IF(F44=\"měsíčně\",Q44*G44*$B$79,IF(F44=\"čtvrtletně\",Q44*G44*4*$B$80,IF(F44=\"ročně\",Q44*G44*$B$80,G44*Q44*$B$80)))))*'Základní údaje'!$H$13*IF(K44=1,'Základní údaje'!$C$12,1)","v":0}]
["Sklad nábytku",48,null,1,48,"ročně",1,null,null,1,0,"Úklidová činnost č. 1",12,null,0.2,0,0,{"$f":"IF(F45=\"denně\",Q45*G45*$B$77,IF(F45=\"týdně\",Q45*G45*$B$78,IF(F45=\"měsíčně\",Q45*G45*$B$79,IF(F45=\"čtvrtletně\",Q45*G45*4*$B$80,IF(F45=\"ročně\",Q45*G45*$B$80,G45*Q45*$B$80)))))*'Základní údaje'!$H$13*IF(K45=1,'Základní údaje'!$C$12,1)","v":0}]
["Kryt pravá strana",156,null,1,156,"ročně",1,null,null,1,0,"Úklidová činnost č. 1",130,null,2.1666666666666665,0,0,{"$f":"IF(F46=\"denně\",Q46*G46*$B$77,IF(F46=\"týdně\",Q46*G46*$B$78,IF(F46=\"měsíčně\",Q46*G46*$B$79,IF(F46=\"čtvrtletně\",Q46*G46*4*$B$80,IF(F46=\"ročně\",Q46*G46*$B$80,G46*Q46*$B$80)))))*'Základní údaje'!$H$13*IF(K46=1,'Základní údaje'!$C$12,1)","v":0}]
["Kryt levá strana",156,null,1,156,"ročně",1,null,null,1,0,"Úklidová činnost č. 1",130,null,2.1666666666666665,0,0,{"$f":"IF(F47=\"denně\",Q47*G47*$B$77,IF(F47=\"týdně\",Q47*G47*$B$78,IF(F47=\"měsíčně\",Q47*G47*$B$79,IF(F47=\"čtvrtletně\",Q47*G47*4*$B$80,IF(F47=\"ročně\",Q47*G47*$B$80,G47*Q47*$B$80)))))*'Základní údaje'!$H$13*IF(K47=1,'Základní údaje'!$C$12,1)","v":0}]
["Datový rozvaděč",17,null,1,17,"ročně",1,null,null,1,0,"Úklidová činnost č. 1",14.166666666666666,null,0.2361111111111111,0,0,{"$f":"IF(F48=\"denně\",Q48*G48*$B$77,IF(F48=\"týdně\",Q48*G48*$B$78,IF(F48=\"měsíčně\",Q48*G48*$B$79,IF(F48=\"čtvrtletně\",Q48*G48*4*$B$80,IF(F48=\"ročně\",Q48*G48*$B$80,G48*Q48*$B$80)))))*'Základní údaje'!$H$13*IF(K48=1,'Základní údaje'!$C$12,1)","v":0}]
["Mytí oken",null,1,195,195,"ročně",2,null,null,1,1,"Úklidová činnost č. 12",10,null,32.5,0,0,{"$f":"IF(F49=\"denně\",Q49*G49*$B$77,IF(F49=\"týdně\",Q49*G49*$B$78,IF(F49=\"měsíčně\",Q49*G49*$B$79,IF(F49=\"čtvrtletně\",Q49*G49*4*$B$80,IF(F49=\"ročně\",Q49*G49*$B$80,G49*Q49*$B$80)))))*'Základní údaje'!$H$13*IF(K49=1,'Základní údaje'!$C$12,1)","v":0}]
["Pokoj A - Buňka typ A student",15,null,10,150,"ročně",1,null,null,1,0,"Úklidová činnost č. 6",40,null,6.666666666666667,0,0,{"$f":"IF(F50=\"denně\",Q50*G50*$B$77,IF(F50=\"týdně\",Q50*G50*$B$78,IF(F50=\"měsíčně\",Q50*G50*$B$79,IF(F50=\"čtvrtletně\",Q50*G50*4*$B$80,IF(F50=\"ročně\",Q50*G50*$B$80,G50*Q50*$B$80)))))*'Základní údaje'!$H$13*IF(K50=1,'Základní údaje'!$C$12,1)","v":0}]
["Pokoj B - Buňka typ A student",15,null,10,150,"ročně",1,null,null,1,0,"Úklidová činnost č. 6",40,null,6.666666666666667,0,0,{"$f":"IF(F51=\"denně\",Q51*G51*$B$77,IF(F51=\"týdně\",Q51*G51*$B$78,IF(F51=\"měsíčně\",Q51*G51*$B$79,IF(F51=\"čtvrtletně\",Q51*G51*4*$B$80,IF(F51=\"ročně\",Q51*G51*$B$80,G51*Q51*$B$80)))))*'Základní údaje'!$H$13*IF(K51=1,'Základní údaje'!$C$12,1)","v":0}]
["Pokoj C - Buňka typ A student",14,null,10,140,"ročně",1,null,null,1,0,"Úklidová činnost č. 6",40,null,6.666666666666667,0,0,{"$f":"IF(F52=\"denně\",Q52*G52*$B$77,IF(F52=\"týdně\",Q52*G52*$B$78,IF(F52=\"měsíčně\",Q52*G52*$B$79,IF(F52=\"čtvrtletně\",Q52*G52*4*$B$80,IF(F52=\"ročně\",Q52*G52*$B$80,G52*Q52*$B$80)))))*'Základní údaje'!$H$13*IF(K52=1,'Základní údaje'!$C$12,1)","v":0}]
["Pokoj A Buňka typ B student",18,null,10,180,"ročně",1,null,null,1,0,"Úklidová činnost č. 6",40,null,6.666666666666667,0,0,{"$f":"IF(F53=\"denně\",Q53*G53*$B$77,IF(F53=\"týdně\",Q53*G53*$B$78,IF(F53=\"měsíčně\",Q53*G53*$B$79,IF(F53=\"čtvrtletně\",Q53*G53*4*$B$80,IF(F53=\"ročně\",Q53*G53*$B$80,G53*Q53*$B$80)))))*'Základní údaje'!$H$13*IF(K53=1,'Základní údaje'!$C$12,1)","v":0}]
["Pokoj B - Buňka typ B student",17,null,10,170,"ročně",1,null,null,1,0,"Úklidová činnost č. 6",40,null,6.666666666666667,0,0,{"$f":"IF(F54=\"denně\",Q54*G54*$B$77,IF(F54=\"týdně\",Q54*G54*$B$78,IF(F54=\"měsíčně\",Q54*G54*$B$79,IF(F54=\"čtvrtletně\",Q54*G54*4*$B$80,IF(F54=\"ročně\",Q54*G54*$B$80,G54*Q54*$B$80)))))*'Základní údaje'!$H$13*IF(K54=1,'Základní údaje'!$C$12,1)","v":0}]
["Pokoj C - Buňka typ B student",15,null,10,150,"ročně",1,null,null,1,0,"Úklidová činnost č. 6",40,null,6.666666666666667,0,0,{"$f":"IF(F55=\"denně\",Q55*G55*$B$77,IF(F55=\"týdně\",Q55*G55*$B$78,IF(F55=\"měsíčně\",Q55*G55*$B$79,IF(F55=\"čtvrtletně\",Q55*G55*4*$B$80,IF(F55=\"ročně\",Q55*G55*$B$80,G55*Q55*$B$80)))))*'Základní údaje'!$H$13*IF(K55=1,'Základní údaje'!$C$12,1)","v":0}]
["Chodba + kuchyňka - Buňka typ A student",11,null,10,110,"sezonně",2,35,52,1,0,"Úklidová činnost č. 5",18.333333333333332,null,3.0555555555555554,0,0,{"$f":"IF(F56=\"denně\",Q56*G56*$B$77,IF(F56=\"týdně\",Q56*G56*$B$78,IF(F56=\"měsíčně\",Q56*G56*$B$79,IF(F56=\"čtvrtletně\",Q56*G56*4*$B$80,IF(F56=\"ročně\",Q56*G56*$B$80,G56*Q56*$B$80)))))*'Základní údaje'!$H$13*IF(K56=1,'Základní údaje'!$C$12,1)","v":0}]
["Sociální zařízení + WC - Buňka typ A student",5,null,10,50,"sezonně",2,35,52,1,0,"Úklidová činnost č. 14; 15",12.5,null,2.0833333333333335,0,0,{"$f":"IF(F57=\"denně\",Q57*G57*$B$77,IF(F57=\"týdně\",Q57*G57*$B$78,IF(F57=\"měsíčně\",Q57*G57*$B$79,IF(F57=\"čtvrtletně\",Q57*G57*4*$B$80,IF(F57=\"ročně\",Q57*G57*$B$80,G57*Q57*$B$80)))))*'Základní údaje'!$H$13*IF(K57=1,'Základní údaje'!$C$12,1)","v":0}]
["Chodba + kuchyňka - Buňka typ A  HOTEL",11,null,10,110,"sezonně",2,1,19,1,0,"Úklidová činnost č. 5",18.333333333333332,null,3.0555555555555554,0,0,{"$f":"IF(F58=\"denně\",Q58*G58*$B$77,IF(F58=\"týdně\",Q58*G58*$B$78,IF(F58=\"měsíčně\",Q58*G58*$B$79,IF(F58=\"čtvrtletně\",Q58*G58*4*$B$80,IF(F58=\"ročně\",Q58*G58*$B$80,G58*Q58*$B$80)))))*'Základní údaje'!$H$13*IF(K58=1,'Základní údaje'!$C$12,1)","v":0}]
["Sociální zařízení + WC - Buňka typ A  HOTEL",5,null,10,50,"sezonně",2,1,19,1,0,"Úklidová činnost č. 14; 15",12.5,null,2.0833333333333335,0,0,{"$f":"IF(F59=\"denně\",Q59*G59*$B$77,IF(F59=\"týdně\",Q59*G59*$B$78,IF(F59=\"měsíčně\",Q59*G59*$B$79,IF(F59=\"čtvrtletně\",Q59*G59*4*$B$80,IF(F59=\"ročně\",Q59*G59*$B$80,G59*Q59*$B$80)))))*'Základní údaje'!$H$13*IF(K59=1,'Základní údaje'!$C$12,1)","v":0}]
["Chodba + kuchyňka - Buňka typ B student",9,null,10,90,"sezonně",2,35,52,1,0,"Úklidová činnost č. 5",15,null,2.5,0,0,{"$f":"IF(F60=\"denně\",Q60*G60*$B$77,IF(F60=\"týdně\",Q60*G60*$B$78,IF(F60=\"měsíčně\",Q60*G60*$B$79,IF(F60=\"čtvrtletně\",Q60*G60*4*$B$80,IF(F60=\"ročně\",Q60*G60*$B$80,G60*Q60*$B$80)))))*'Základní údaje'!$H$13*IF(K60=1,'Základní údaje'!$C$12,1)","v":0}]
["Sociální zařízení - Buňka typ B student",4,null,10,40,"sezonně",2,35,52,1,0,"Úklidová činnost č. 14; 15",10,null,1.6666666666666667,0,0,{"$f":"IF(F61=\"denně\",Q61*G61*$B$77,IF(F61=\"týdně\",Q61*G61*$B$78,IF(F61=\"měsíčně\",Q61*G61*$B$79,IF(F61=\"čtvrtletně\",Q61*G61*4*$B$80,IF(F61=\"ročně\",Q61*G61*$B$80,G61*Q61*$B$80)))))*'Základní údaje'!$H$13*IF(K61=1,'Základní údaje'!$C$12,1)","v":0}]
["Chodba + kuchyňka - Buňka typ B  HOTEL",9,null,10,90,"sezonně",2,1,19,1,0,"Úklidová činnost č. 5",15,null,2.5,0,0,{"$f":"IF(F62=\"denně\",Q62*G62*$B$77,IF(F62=\"týdně\",Q62*G62*$B$78,IF(F62=\"měsíčně\",Q62*G62*$B$79,IF(F62=\"čtvrtletně\",Q62*G62*4*$B$80,IF(F62=\"ročně\",Q62*G62*$B$80,G62*Q62*$B$80)))))*'Základní údaje'!$H$13*IF(K62=1,'Základní údaje'!$C$12,1)","v":0}]
["Sociální zařízení - Buňka typ B  HOTEL",4,null,10,40,"sezonně",2,1,19,1,0,"Úklidová činnost č. 14; 15",10,null,1.6666666666666667,0,0,{"$f":"IF(F63=\"denně\",Q63*G63*$B$77,IF(F63=\"týdně\",Q63*G63*$B$78,IF(F63=\"měsíčně\",Q63*G63*$B$79,IF(F63=\"čtvrtletně\",Q63*G63*4*$B$80,IF(F63=\"ročně\",Q63*G63*$B$80,G63*Q63*$B$80)))))*'Základní údaje'!$H$13*IF(K63=1,'Základní údaje'!$C$12,1)","v":0}]
["Pokoj  A - Buňka typ A HOTEL",15,null,9,135,"sezonně",{"$f":"(I64-H64+1)*3","v":48},20,35,1,1,"Úklidová činnost č. 9",12.5,null,1.875,0,0,{"$f":"IF(F64=\"denně\",Q64*G64*$B$77,IF(F64=\"týdně\",Q64*G64*$B$78,IF(F64=\"měsíčně\",Q64*G64*$B$79,IF(F64=\"čtvrtletně\",Q64*G64*4*$B$80,IF(F64=\"ročně\",Q64*G64*$B$80,G64*Q64*$B$80)))))*'Základní údaje'!$H$13*IF(K64=1,'Základní údaje'!$C$12,1)","v":0}]
["Pokoj B - Buňka typ A HOTEL",15,null,9,135,"sezonně",48,20,35,1,1,"Úklidová činnost č. 9",12.5,null,1.875,0,0,{"$f":"IF(F65=\"denně\",Q65*G65*$B$77,IF(F65=\"týdně\",Q65*G65*$B$78,IF(F65=\"měsíčně\",Q65*G65*$B$79,IF(F65=\"čtvrtletně\",Q65*G65*4*$B$80,IF(F65=\"ročně\",Q65*G65*$B$80,G65*Q65*$B$80)))))*'Základní údaje'!$H$13*IF(K65=1,'Základní údaje'!$C$12,1)","v":0}]
["Pokoj C - Buňka typ A HOTEL",14,null,9,126,"sezonně",48,20,35,1,1,"Úklidová činnost č. 9",12.5,null,1.875,0,0,{"$f":"IF(F66=\"denně\",Q66*G66*$B$77,IF(F66=\"týdně\",Q66*G66*$B$78,IF(F66=\"měsíčně\",Q66*G66*$B$79,IF(F66=\"čtvrtletně\",Q66*G66*4*$B$80,IF(F66=\"ročně\",Q66*G66*$B$80,G66*Q66*$B$80)))))*'Základní údaje'!$H$13*IF(K66=1,'Základní údaje'!$C$12,1)","v":0}]
["Chodba + kuchyňka Pokoj A - Buňka typ A HOTEL",11,null,9,99,"sezonně",48,20,35,1,1,"Úklidová činnost č. 5",12.5,null,1.875,0,0,{"$f":"IF(F67=\"denně\",Q67*G67*$B$77,IF(F67=\"týdně\",Q67*G67*$B$78,IF(F67=\"měsíčně\",Q67*G67*$B$79,IF(F67=\"čtvrtletně\",Q67*G67*4*$B$80,IF(F67=\"ročně\",Q67*G67*$B$80,G67*Q67*$B$80)))))*'Základní údaje'!$H$13*IF(K67=1,'Základní údaje'!$C$12,1)","v":0}]
["Sociální zařízení + WC - Buňka typ A HOTEL",5,null,9,{"$f":"B68*D68+C68*D68","v":45},"sezonně",48,20,35,1,1,"Úklidová činnost č. 14; 15",12.5,null,{"$f":"IF(N68=0,M68*D68/60,N68*D68/60)","v":1.875},{"$f":"ROUND(IF(N68=0,M68/60*$B$2,N68/60*$B$2),0)","v":0},{"$f":"P68*D68","v":0},{"$f":"IF(F68=\"denně\",Q68*G68*$B$77,IF(F68=\"týdně\",Q68*G68*$B$78,IF(F68=\"měsíčně\",Q68*G68*$B$79,IF(F68=\"čtvrtletně\",Q68*G68*4*$B$80,IF(F68=\"ročně\",Q68*G68*$B$80,G68*Q68*$B$80)))))*'Základní údaje'!$H$13*IF(K68=1,'Základní údaje'!$C$12,1)","v":0}]
["Pokoj A - Buňka typ B HOTEL",18,null,10,180,"sezonně",48,20,35,1,1,"Úklidová činnost č. 9",12.5,null,2.0833333333333335,0,0,{"$f":"IF(F69=\"denně\",Q69*G69*$B$77,IF(F69=\"týdně\",Q69*G69*$B$78,IF(F69=\"měsíčně\",Q69*G69*$B$79,IF(F69=\"čtvrtletně\",Q69*G69*4*$B$80,IF(F69=\"ročně\",Q69*G69*$B$80,G69*Q69*$B$80)))))*'Základní údaje'!$H$13*IF(K69=1,'Základní údaje'!$C$12,1)","v":0}]
["Pokoj B - Buňka typ B HOTEL",17,null,10,170,"sezonně",48,20,35,1,1,"Úklidová činnost č. 9",12.5,null,2.0833333333333335,0,0,{"$f":"IF(F70=\"denně\",Q70*G70*$B$77,IF(F70=\"týdně\",Q70*G70*$B$78,IF(F70=\"měsíčně\",Q70*G70*$B$79,IF(F70=\"čtvrtletně\",Q70*G70*4*$B$80,IF(F70=\"ročně\",Q70*G70*$B$80,G70*Q70*$B$80)))))*'Základní údaje'!$H$13*IF(K70=1,'Základní údaje'!$C$12,1)","v":0}]
["Pokoj C - Buňka typ B HOTEL",15,null,10,150,"sezonně",48,20,35,1,1,"Úklidová činnost č. 9",12.5,null,2.0833333333333335,0,0,{"$f":"IF(F71=\"denně\",Q71*G71*$B$77,IF(F71=\"týdně\",Q71*G71*$B$78,IF(F71=\"měsíčně\",Q71*G71*$B$79,IF(F71=\"čtvrtletně\",Q71*G71*4*$B$80,IF(F71=\"ročně\",Q71*G71*$B$80,G71*Q71*$B$80)))))*'Základní údaje'!$H$13*IF(K71=1,'Základní údaje'!$C$12,1)","v":0}]
["Chodba + kuchyňka - Buňka typ B HOTEL",9,null,10,90,"sezonně",48,20,35,1,1,"Úklidová činnost č. 5",12.5,null,2.0833333333333335,0,0,{"$f":"IF(F72=\"denně\",Q72*G72*$B$77,IF(F72=\"týdně\",Q72*G72*$B$78,IF(F72=\"měsíčně\",Q72*G72*$B$79,IF(F72=\"čtvrtletně\",Q72*G72*4*$B$80,IF(F72=\"ročně\",Q72*G72*$B$80,G72*Q72*$B$80)))))*'Základní údaje'!$H$13*IF(K72=1,'Základní údaje'!$C$12,1)","v":0}]
["Sociální zařízení - Buňka typ B HOTEL",4,null,10,40,"sezonně",48,20,35,1,1,"Úklidová činnost č. 14; 15",12.5,null,2.0833333333333335,0,0,{"$f":"IF(F73=\"denně\",Q73*G73*$B$77,IF(F73=\"týdně\",Q73*G73*$B$78,IF(F73=\"měsíčně\",Q73*G73*$B$79,IF(F73=\"čtvrtletně\",Q73*G73*4*$B$80,IF(F73=\"ročně\",Q73*G73*$B$80,G73*Q73*$B$80)))))*'Základní údaje'!$H$13*IF(K73=1,'Základní údaje'!$C$12,1)","v":0}]
[null,null,null,null,0,null,null,null,null,null,null,null,null,null,0,0,0,{"$f":"IF(F74=\"denně\",Q74*G74*$B$77,IF(F74=\"týdně\",Q74*G74*$B$78,IF(F74=\"měsíčně\",Q74*G74*$B$79,IF(F74=\"čtvrtletně\",Q74*G74*4*$B$80,IF(F74=\"ročně\",Q74*G74*$B$80,G74*Q74*$B$80)))))*'Základní údaje'!$H$13*IF(K74=1,'Základní údaje'!$C$12,1)","v":0}]
["Plocha celkem",{"$f":"SUMPRODUCT(B4:B74,D4:D74)","v":5579},"[m²]"]
["Počet kusů celkem",{"$f":"SUMPRODUCT(C4:C35,D4:D35)","v":3},"[-]"]
["Počet pracovních dnů úklidu:",{"$f":"NETWORKDAYS($C$1,$D$1,$A$87:$A$153)","v":1026},null,null,null,null,null,null,null,null,null,{"$f":"NETWORKDAYS(J77,K77,J78)","v":0}]
["Počet týdnů úklidu:",{"$f":"B80*52","v":208}]
["Počet měsíců úklidu:",{"$f":"B80*12","v":48}]
["Počet let úklidu",{"$f":"YEAR(D1)-YEAR(C1)","v":4}]
["CENA CELKEM:",{"$f":"ROUND(SUM(R4:R74),0)","v":0},null,null,"[Kč]"]
[]
[]
[]
[]
["svátky:","četnost úklidu","označení","období úklidu",null,null,"Kritéria"]
["2019-01-01","denně",0,"1. Q",null,null,{"$f":"$F$3","v":"uklízí se"}]
["2019-04-19","týdně",1,"2. Q",null,null,{"$f":"B87","v":"denně"}]
["2019-04-22","měsíčně",null,"3. Q"]
["2019-05-01","čtvrtletně",null,"4. Q",null,null,{"$f":"$F$3","v":"uklízí se"}]
["2019-05-08","ročně",null,"leden",null,null,{"$f":"B88","v":"týdně"}]
["2019-07-05","sezonně",null,"únor"]
["2019-10-28",null,null,"březen",null,null,{"$f":"$F$3","v":"uklízí se"}]
["2019-12-24",null,null,"duben",null,null,{"$f":"B89","v":"měsíčně"}]
["2019-12-25",null,null,"květen"]
["2019-12-26",null,null,"červen",null,null,{"$f":"$F$3","v":"uklízí se"}]
["2020-01-01",null,null,"červenec",null,null,{"$f":"B90","v":"čtvrtletně"}]
["2020-04-10",null,null,"srpen"]
["2020-04-13",null,null,"září",null,null,{"$f":"$F$3","v":"uklízí se"}]
["2020-05-01",null,null,"říjen",null,null,{"$f":"B91","v":"ročně"}]
["2020-05-08",null,null,"listopat"]
["2020-07-06",null,null,"prosinec"]
["2020-09-28"]
["2020-10-28"]
["2020-11-17"]
["2020-12-24"]
["2020-12-25"]
["2021-01-01"]
["2021-04-02"]
["2021-04-05"]
["2021-07-05"]
["2021-07-06"]
["2021-09-28"]
["2021-10-28"]
["2021-11-17"]
["2021-12-24"]
["2022-04-15"]
["2022-04-18"]
["2022-07-05"]
["2022-07-06"]
["2022-09-28"]
["2022-10-28"]
["2022-11-17"]
["2022-12-26"]
["2023-04-07"]
["2023-04-10"]
["2023-05-01"]
["2023-05-08"]
["2023-07-05"]
["2023-07-06"]
["2023-09-28"]
["2023-11-17"]
["2023-12-25"]
["2023-12-26"]
["2024-01-01"]
["2024-03-29"]
["2024-04-01"]
["2024-05-01"]
["2024-05-08"]
["2024-07-05"]
["2024-10-28"]
["2024-12-24"]
["2024-12-26"]
["2024-12-26"]
["2025-01-01"]
["2025-04-18"]
["2025-04-21"]
["2025-10-28"]
["2025-11-17"]
["2025-12-24"]
["2025-12-25"]
["2025-12-26"]

{"sheet":"Karty úklidu","index":2,"n_rows":75,"n_cols":7,"rows_kept":75,"cut":false,"hidden":false,"merged":[]}
[]
["Karta úklidu",null,null,null,{"$f":"'Rozpis úklidu'!$A$1","v":"kolej: University hotel, VŠE"}]
["Úklid za období","den"]
[{"$f":"'Rozpis úklidu'!$A$3","v":"Úklidová jednotka"},{"$f":"'Rozpis úklidu'!$D$3","v":"počet\núklidových jednotek"},"uklízí se","požadovaný úklid",{"$f":"'Rozpis úklidu'!$L$3","v":"Popis činnosti"},"Ćas na úklid celkem\n]hod.]","Poznámka"]
[{"$f":"'Rozpis úklidu'!A4","v":"Hala + recepce + WC"},{"$f":"'Rozpis úklidu'!D4","v":1},{"$f":"'Rozpis úklidu'!F4","v":"denně"},1,{"$f":"'Rozpis úklidu'!L4","v":"Úklidová činnost č. 1; 3 a 14"},{"$f":"IF('Rozpis úklidu'!N4<>0,'Rozpis úklidu'!N4,'Rozpis úklidu'!M4)*D5/60","v":0.5}]
[{"$f":"'Rozpis úklidu'!A5","v":"Sociální zařízení pro zaměstnance"},{"$f":"'Rozpis úklidu'!D5","v":1},{"$f":"'Rozpis úklidu'!F5","v":"denně"},1,{"$f":"'Rozpis úklidu'!L5","v":"Úklidová činnost č. 14"},{"$f":"IF('Rozpis úklidu'!N5<>0,'Rozpis úklidu'!N5,'Rozpis úklidu'!M5)*D6/60","v":0.11111111111111112}]
[{"$f":"'Rozpis úklidu'!A6","v":"Lobby"},{"$f":"'Rozpis úklidu'!D6","v":1},{"$f":"'Rozpis úklidu'!F6","v":"denně"},1,{"$f":"'Rozpis úklidu'!L6","v":"Úklidová činnost č. 1"},{"$f":"IF('Rozpis úklidu'!N6<>0,'Rozpis úklidu'!N6,'Rozpis úklidu'!M6)*D7/60","v":0.33333333333333331}]
[{"$f":"'Rozpis úklidu'!A7","v":"Výtah"},{"$f":"'Rozpis úklidu'!D7","v":1},{"$f":"'Rozpis úklidu'!F7","v":"denně"},1,{"$f":"'Rozpis úklidu'!L7","v":"Úklidová činnost č. 11"},{"$f":"IF('Rozpis úklidu'!N7<>0,'Rozpis úklidu'!N7,'Rozpis úklidu'!M7)*D8/60","v":8.3333333333333329E-2}]
[{"$f":"'Rozpis úklidu'!A8","v":"Kancelář vedoucí"},{"$f":"'Rozpis úklidu'!D8","v":1},{"$f":"'Rozpis úklidu'!F8","v":"denně"},1,{"$f":"'Rozpis úklidu'!L8","v":"Úklidová činnost č. 3"},{"$f":"IF('Rozpis úklidu'!N8<>0,'Rozpis úklidu'!N8,'Rozpis úklidu'!M8)*D9/60","v":0.16666666666666666}]
[{"$f":"'Rozpis úklidu'!A9","v":"Před hotelem"},{"$f":"'Rozpis úklidu'!D9","v":1},{"$f":"'Rozpis úklidu'!F9","v":"denně"},1,{"$f":"'Rozpis úklidu'!L9","v":"Zamést, sebrat odpadky a nedopalky."},{"$f":"IF('Rozpis úklidu'!N9<>0,'Rozpis úklidu'!N9,'Rozpis úklidu'!M9)*D10/60","v":0.16666666666666666}]
[{"$f":"'Rozpis úklidu'!A10","v":"Za hotelem"},{"$f":"'Rozpis úklidu'!D10","v":1},{"$f":"'Rozpis úklidu'!F10","v":"denně"},1,{"$f":"'Rozpis úklidu'!L10","v":"Zamést, sebrat odpadky a nedopalky."},{"$f":"IF('Rozpis úklidu'!N10<>0,'Rozpis úklidu'!N10,'Rozpis úklidu'!M10)*D11/60","v":0.16666666666666666}]
[{"$f":"'Rozpis úklidu'!A11","v":"Prádelna"},{"$f":"'Rozpis úklidu'!D11","v":1},{"$f":"'Rozpis úklidu'!F11","v":"denně"},1,{"$f":"'Rozpis úklidu'!L11","v":"Úklidová činnost č. 4"},{"$f":"IF('Rozpis úklidu'!N11<>0,'Rozpis úklidu'!N11,'Rozpis úklidu'!M11)*D12/60","v":0.16666666666666666}]
[{"$f":"'Rozpis úklidu'!A12","v":"Kancelář zástupkyně"},{"$f":"'Rozpis úklidu'!D12","v":1},{"$f":"'Rozpis úklidu'!F12","v":"týdně"},0,{"$f":"'Rozpis úklidu'!L12","v":"Úklidová činnost č. 3"},{"$f":"IF('Rozpis úklidu'!N12<>0,'Rozpis úklidu'!N12,'Rozpis úklidu'!M12)*D13/60","v":0}]
[{"$f":"'Rozpis úklidu'!A13","v":"Chodby"},{"$f":"'Rozpis úklidu'!D13","v":5},{"$f":"'Rozpis úklidu'!F13","v":"týdně"},0,{"$f":"'Rozpis úklidu'!L13","v":"Úklidová činnost č. 1"},{"$f":"IF('Rozpis úklidu'!N13<>0,'Rozpis úklidu'!N13,'Rozpis úklidu'!M13)*D14/60","v":0}]
[{"$f":"'Rozpis úklidu'!A14","v":"Schodiště"},{"$f":"'Rozpis úklidu'!D14","v":5},{"$f":"'Rozpis úklidu'!F14","v":"týdně"},0,{"$f":"'Rozpis úklidu'!L14","v":"Úklidová činnost č. 1"},{"$f":"IF('Rozpis úklidu'!N14<>0,'Rozpis úklidu'!N14,'Rozpis úklidu'!M14)*D15/60","v":0}]
[{"$f":"'Rozpis úklidu'!A15","v":"Studovna"},{"$f":"'Rozpis úklidu'!D15","v":1},{"$f":"'Rozpis úklidu'!F15","v":"týdně"},0,{"$f":"'Rozpis úklidu'!L15","v":"Úklidová činnost č. 3"},{"$f":"IF('Rozpis úklidu'!N15<>0,'Rozpis úklidu'!N15,'Rozpis úklidu'!M15)*D16/60","v":0}]
[{"$f":"'Rozpis úklidu'!A16","v":"Úklidová místnost + sociální zařízení"},{"$f":"'Rozpis úklidu'!D16","v":1},{"$f":"'Rozpis úklidu'!F16","v":"týdně"},0,{"$f":"'Rozpis úklidu'!L16","v":"Úklidová činnost č. 1;  14"},{"$f":"IF('Rozpis úklidu'!N16<>0,'Rozpis úklidu'!N16,'Rozpis úklidu'!M16)*D17/60","v":0}]
[{"$f":"'Rozpis úklidu'!A17","v":"Sklad špinavého prádla"},{"$f":"'Rozpis úklidu'!D17","v":1},{"$f":"'Rozpis úklidu'!F17","v":"týdně"},0,{"$f":"'Rozpis úklidu'!L17","v":"Úklidová činnost č. 3"},{"$f":"IF('Rozpis úklidu'!N17<>0,'Rozpis úklidu'!N17,'Rozpis úklidu'!M17)*D18/60","v":0}]
[{"$f":"'Rozpis úklidu'!A18","v":"Společenská místnost"},{"$f":"'Rozpis úklidu'!D18","v":1},{"$f":"'Rozpis úklidu'!F18","v":"týdně"},0,{"$f":"'Rozpis úklidu'!L18","v":"Úklidová činnost č. 3"},{"$f":"IF('Rozpis úklidu'!N18<>0,'Rozpis úklidu'!N18,'Rozpis úklidu'!M18)*D19/60","v":0}]
[{"$f":"'Rozpis úklidu'!A19","v":"Pokoj A - Buňka pro handicapované"},{"$f":"'Rozpis úklidu'!D19","v":1},{"$f":"'Rozpis úklidu'!F19","v":"týdně"},0,{"$f":"'Rozpis úklidu'!L19","v":"Úklidová činnost č. 9"},{"$f":"IF('Rozpis úklidu'!N19<>0,'Rozpis úklidu'!N19,'Rozpis úklidu'!M19)*D20/60","v":0}]
[{"$f":"'Rozpis úklidu'!A20","v":"Pokoj B - Buňka pro handicapované"},{"$f":"'Rozpis úklidu'!D20","v":1},{"$f":"'Rozpis úklidu'!F20","v":"týdně"},0,{"$f":"'Rozpis úklidu'!L20","v":"Úklidová činnost č. 9"},{"$f":"IF('Rozpis úklidu'!N20<>0,'Rozpis úklidu'!N20,'Rozpis úklidu'!M20)*D21/60","v":0}]
[{"$f":"'Rozpis úklidu'!A21","v":"Chodba + kuchyňka - Buňka pro handicapované"},{"$f":"'Rozpis úklidu'!D21","v":1},{"$f":"'Rozpis úklidu'!F21","v":"týdně"},0,{"$f":"'Rozpis úklidu'!L21","v":"Úklidová činnost č. 7"},{"$f":"IF('Rozpis úklidu'!N21<>0,'Rozpis úklidu'!N21,'Rozpis úklidu'!M21)*D22/60","v":0}]
[{"$f":"'Rozpis úklidu'!A22","v":"Sociální zařízení - Buňka pro handicapované"},{"$f":"'Rozpis úklidu'!D22","v":1},{"$f":"'Rozpis úklidu'!F22","v":"týdně"},0,{"$f":"'Rozpis úklidu'!L22","v":"Úklidová činnost č. 14; 15"},{"$f":"IF('Rozpis úklidu'!N22<>0,'Rozpis úklidu'!N22,'Rozpis úklidu'!M22)*D23/60","v":0}]
[{"$f":"'Rozpis úklidu'!A23","v":"1L pokoj - HOTEL"},{"$f":"'Rozpis úklidu'!D23","v":5},{"$f":"'Rozpis úklidu'!F23","v":"týdně"},0,{"$f":"'Rozpis úklidu'!L23","v":"Úklidová činnost č. 8"},{"$f":"IF('Rozpis úklidu'!N23<>0,'Rozpis úklidu'!N23,'Rozpis úklidu'!M23)*D24/60","v":0}]
[{"$f":"'Rozpis úklidu'!A24","v":"2L pokoj typ A - HOTEL"},{"$f":"'Rozpis úklidu'!D24","v":6},{"$f":"'Rozpis úklidu'!F24","v":"týdně"},0,{"$f":"'Rozpis úklidu'!L24","v":"Úklidová činnost č. 8"},{"$f":"IF('Rozpis úklidu'!N24<>0,'Rozpis úklidu'!N24,'Rozpis úklidu'!M24)*D25/60","v":0}]
[{"$f":"'Rozpis úklidu'!A25","v":"2L pokoj typ B - HOTEL"},{"$f":"'Rozpis úklidu'!D25","v":15},{"$f":"'Rozpis úklidu'!F25","v":"týdně"},0,{"$f":"'Rozpis úklidu'!L25","v":"Úklidová činnost č. 8"},{"$f":"IF('Rozpis úklidu'!N25<>0,'Rozpis úklidu'!N25,'Rozpis úklidu'!M25)*D26/60","v":0}]
[{"$f":"'Rozpis úklidu'!A26","v":"2L pokoj typ C - HOTEL"},{"$f":"'Rozpis úklidu'!D26","v":6},{"$f":"'Rozpis úklidu'!F26","v":"týdně"},0,{"$f":"'Rozpis úklidu'!L26","v":"Úklidová činnost č. 8"},{"$f":"IF('Rozpis úklidu'!N26<>0,'Rozpis úklidu'!N26,'Rozpis úklidu'!M26)*D27/60","v":0}]
[{"$f":"'Rozpis úklidu'!A27","v":"2L pokoj typ D - HOTEL"},{"$f":"'Rozpis úklidu'!D27","v":10},{"$f":"'Rozpis úklidu'!F27","v":"týdně"},0,{"$f":"'Rozpis úklidu'!L27","v":"Úklidová činnost č. 8"},{"$f":"IF('Rozpis úklidu'!N27<>0,'Rozpis úklidu'!N27,'Rozpis úklidu'!M27)*D28/60","v":0}]
[{"$f":"'Rozpis úklidu'!A28","v":"2L pokoj typ E - HOTEL"},{"$f":"'Rozpis úklidu'!D28","v":5},{"$f":"'Rozpis úklidu'!F28","v":"týdně"},0,{"$f":"'Rozpis úklidu'!L28","v":"Úklidová činnost č. 8"},{"$f":"IF('Rozpis úklidu'!N28<>0,'Rozpis úklidu'!N28,'Rozpis úklidu'!M28)*D29/60","v":0}]
[{"$f":"'Rozpis úklidu'!A29","v":"3L pokoj (bez kuchyňky) - HOTEL"},{"$f":"'Rozpis úklidu'!D29","v":2},{"$f":"'Rozpis úklidu'!F29","v":"týdně"},0,{"$f":"'Rozpis úklidu'!L29","v":"Úklidová činnost č. 8"},{"$f":"IF('Rozpis úklidu'!N29<>0,'Rozpis úklidu'!N29,'Rozpis úklidu'!M29)*D30/60","v":0}]
[{"$f":"'Rozpis úklidu'!A30","v":"3L pokoj (s kuchyňkou) - HOTEL"},{"$f":"'Rozpis úklidu'!D30","v":5},{"$f":"'Rozpis úklidu'!F30","v":"týdně"},0,{"$f":"'Rozpis úklidu'!L30","v":"Úklidová činnost č. 8"},{"$f":"IF('Rozpis úklidu'!N30<>0,'Rozpis úklidu'!N30,'Rozpis úklidu'!M30)*D31/60","v":0}]
[{"$f":"'Rozpis úklidu'!A31","v":"Pokoj A - Buňka (3 x 2L pokoj)  HOTEL"},{"$f":"'Rozpis úklidu'!D31","v":1},{"$f":"'Rozpis úklidu'!F31","v":"týdně"},0,{"$f":"'Rozpis úklidu'!L31","v":"Úklidová činnost č. 8"},{"$f":"IF('Rozpis úklidu'!N31<>0,'Rozpis úklidu'!N31,'Rozpis úklidu'!M31)*D32/60","v":0}]
[{"$f":"'Rozpis úklidu'!A32","v":"Pokoj B - Buňka (3 x 2L pokoj)  HOTEL"},{"$f":"'Rozpis úklidu'!D32","v":1},{"$f":"'Rozpis úklidu'!F32","v":"týdně"},0,{"$f":"'Rozpis úklidu'!L32","v":"Úklidová činnost č. 8"},{"$f":"IF('Rozpis úklidu'!N32<>0,'Rozpis úklidu'!N32,'Rozpis úklidu'!M32)*D33/60","v":0}]
[{"$f":"'Rozpis úklidu'!A33","v":"Pokoj C - Buňka (3 x 2L pokoj)  HOTEL"},{"$f":"'Rozpis úklidu'!D33","v":1},{"$f":"'Rozpis úklidu'!F33","v":"týdně"},0,{"$f":"'Rozpis úklidu'!L33","v":"Úklidová činnost č. 8"},{"$f":"IF('Rozpis úklidu'!N33<>0,'Rozpis úklidu'!N33,'Rozpis úklidu'!M33)*D34/60","v":0}]
[{"$f":"'Rozpis úklidu'!A34","v":"Chodba + kuchyňka - Buňka (3 x 2L pokoj) HOTEL"},{"$f":"'Rozpis úklidu'!D34","v":1},{"$f":"'Rozpis úklidu'!F34","v":"týdně"},0,{"$f":"'Rozpis úklidu'!L34","v":"Úklidová činnost č. 5"},{"$f":"IF('Rozpis úklidu'!N34<>0,'Rozpis úklidu'!N34,'Rozpis úklidu'!M34)*D35/60","v":0}]
[{"$f":"'Rozpis úklidu'!A35","v":"Sociální zařízení + WC -  - Buňka (3 x 2L pokoj) HOTEL"},{"$f":"'Rozpis úklidu'!D35","v":1},{"$f":"'Rozpis úklidu'!F35","v":"týdně"},0,{"$f":"'Rozpis úklidu'!L35","v":"Úklidová činnost č. 14; 15"},{"$f":"IF('Rozpis úklidu'!N35<>0,'Rozpis úklidu'!N35,'Rozpis úklidu'!M35)*D36/60","v":0}]
[{"$f":"'Rozpis úklidu'!A36","v":"Úklid dlouhodobých pobytů"},{"$f":"'Rozpis úklidu'!D36","v":60},{"$f":"'Rozpis úklidu'!F36","v":"týdně"},0,{"$f":"'Rozpis úklidu'!L36","v":"Úklidová činnost č. 9"},{"$f":"IF('Rozpis úklidu'!N36<>0,'Rozpis úklidu'!N36,'Rozpis úklidu'!M36)*D37/60","v":0}]
[{"$f":"'Rozpis úklidu'!A37","v":"Úklid pokojů po opravách, úpravách, malování"},{"$f":"'Rozpis úklidu'!D37","v":2},{"$f":"'Rozpis úklidu'!F37","v":"týdně"},0,{"$f":"'Rozpis úklidu'!L37","v":"Úklidová činnost č. 8"},{"$f":"IF('Rozpis úklidu'!N37<>0,'Rozpis úklidu'!N37,'Rozpis úklidu'!M37)*D38/60","v":0}]
[{"$f":"'Rozpis úklidu'!A38","v":"Roztřídění a spočítání prádla"},{"$f":"'Rozpis úklidu'!D38","v":1},{"$f":"'Rozpis úklidu'!F38","v":"týdně"},0,{"$f":"'Rozpis úklidu'!L38","v":"Roztřídění prádla dle druhú a spočítání kusů."},{"$f":"IF('Rozpis úklidu'!N38<>0,'Rozpis úklidu'!N38,'Rozpis úklidu'!M38)*D39/60","v":0}]
[{"$f":"'Rozpis úklidu'!A39","v":"Přemístění špinavého prádla do klecí"},{"$f":"'Rozpis úklidu'!D39","v":1},{"$f":"'Rozpis úklidu'!F39","v":"týdně"},0,{"$f":"'Rozpis úklidu'!L39","v":"Naložení špinavého prádla do klecí."},{"$f":"IF('Rozpis úklidu'!N39<>0,'Rozpis úklidu'!N39,'Rozpis úklidu'!M39)*D40/60","v":0}]
[{"$f":"'Rozpis úklidu'!A40","v":"Přejímka čistého prádla, naskladnění"},{"$f":"'Rozpis úklidu'!D40","v":1},{"$f":"'Rozpis úklidu'!F40","v":"týdně"},0,{"$f":"'Rozpis úklidu'!L40","v":"Přejímka čistého prádla, kontrola množství, zanesení do skladu čistého prádla."},{"$f":"IF('Rozpis úklidu'!N40<>0,'Rozpis úklidu'!N40,'Rozpis úklidu'!M40)*D41/60","v":0}]
[{"$f":"'Rozpis úklidu'!A41","v":"Chodba suterén"},{"$f":"'Rozpis úklidu'!D41","v":1},{"$f":"'Rozpis úklidu'!F41","v":"měsíčně"},0,{"$f":"'Rozpis úklidu'!L41","v":"Úklidová činnost č. 1"},{"$f":"IF('Rozpis úklidu'!N41<>0,'Rozpis úklidu'!N41,'Rozpis úklidu'!M41)*D42/60","v":0}]
[{"$f":"'Rozpis úklidu'!A42","v":"Výlevky"},{"$f":"'Rozpis úklidu'!D42","v":5},{"$f":"'Rozpis úklidu'!F42","v":"měsíčně"},0,{"$f":"'Rozpis úklidu'!L42","v":"Mytí výlevky"},{"$f":"IF('Rozpis úklidu'!N42<>0,'Rozpis úklidu'!N42,'Rozpis úklidu'!M42)*D43/60","v":0}]
[{"$f":"'Rozpis úklidu'!A43","v":"Sklad prádla a drogerie"},{"$f":"'Rozpis úklidu'!D43","v":1},{"$f":"'Rozpis úklidu'!F43","v":"měsíčně"},0,{"$f":"'Rozpis úklidu'!L43","v":"Úklidová činnost č. 1"},{"$f":"IF('Rozpis úklidu'!N43<>0,'Rozpis úklidu'!N43,'Rozpis úklidu'!M43)*D44/60","v":0}]
[{"$f":"'Rozpis úklidu'!A44","v":"Úschovna zavazadel"},{"$f":"'Rozpis úklidu'!D44","v":1},{"$f":"'Rozpis úklidu'!F44","v":"čtvrtletně"},0,{"$f":"'Rozpis úklidu'!L44","v":"Úklidová činnost č. 1"},{"$f":"IF('Rozpis úklidu'!N44<>0,'Rozpis úklidu'!N44,'Rozpis úklidu'!M44)*D45/60","v":0}]
[{"$f":"'Rozpis úklidu'!A45","v":"Sklad nábytku"},{"$f":"'Rozpis úklidu'!D45","v":1},{"$f":"'Rozpis úklidu'!F45","v":"ročně"},0,{"$f":"'Rozpis úklidu'!L45","v":"Úklidová činnost č. 1"},{"$f":"IF('Rozpis úklidu'!N45<>0,'Rozpis úklidu'!N45,'Rozpis úklidu'!M45)*D46/60","v":0}]
[{"$f":"'Rozpis úklidu'!A46","v":"Kryt pravá strana"},{"$f":"'Rozpis úklidu'!D46","v":1},{"$f":"'Rozpis úklidu'!F46","v":"ročně"},0,{"$f":"'Rozpis úklidu'!L46","v":"Úklidová činnost č. 1"},{"$f":"IF('Rozpis úklidu'!N46<>0,'Rozpis úklidu'!N46,'Rozpis úklidu'!M46)*D47/60","v":0}]
[{"$f":"'Rozpis úklidu'!A47","v":"Kryt levá strana"},{"$f":"'Rozpis úklidu'!D47","v":1},{"$f":"'Rozpis úklidu'!F47","v":"ročně"},0,{"$f":"'Rozpis úklidu'!L47","v":"Úklidová činnost č. 1"},{"$f":"IF('Rozpis úklidu'!N47<>0,'Rozpis úklidu'!N47,'Rozpis úklidu'!M47)*D48/60","v":0}]
[{"$f":"'Rozpis úklidu'!A48","v":"Datový rozvaděč"},{"$f":"'Rozpis úklidu'!D48","v":1},{"$f":"'Rozpis úklidu'!F48","v":"ročně"},0,{"$f":"'Rozpis úklidu'!L48","v":"Úklidová činnost č. 1"},{"$f":"IF('Rozpis úklidu'!N48<>0,'Rozpis úklidu'!N48,'Rozpis úklidu'!M48)*D49/60","v":0}]
[{"$f":"'Rozpis úklidu'!A49","v":"Mytí oken"},{"$f":"'Rozpis úklidu'!D49","v":195},{"$f":"'Rozpis úklidu'!F49","v":"ročně"},0,{"$f":"'Rozpis úklidu'!L49","v":"Úklidová činnost č. 12"},{"$f":"IF('Rozpis úklidu'!N49<>0,'Rozpis úklidu'!N49,'Rozpis úklidu'!M49)*D50/60","v":0}]
[{"$f":"'Rozpis úklidu'!A50","v":"Pokoj A - Buňka typ A student"},{"$f":"'Rozpis úklidu'!D50","v":10},{"$f":"'Rozpis úklidu'!F50","v":"ročně"},0,{"$f":"'Rozpis úklidu'!L50","v":"Úklidová činnost č. 6"},{"$f":"IF('Rozpis úklidu'!N50<>0,'Rozpis úklidu'!N50,'Rozpis úklidu'!M50)*D51/60","v":0}]
[{"$f":"'Rozpis úklidu'!A51","v":"Pokoj B - Buňka typ A student"},{"$f":"'Rozpis úklidu'!D51","v":10},{"$f":"'Rozpis úklidu'!F51","v":"ročně"},0,{"$f":"'Rozpis úklidu'!L51","v":"Úklidová činnost č. 6"},{"$f":"IF('Rozpis úklidu'!N51<>0,'Rozpis úklidu'!N51,'Rozpis úklidu'!M51)*D52/60","v":0}]
[{"$f":"'Rozpis úklidu'!A52","v":"Pokoj C - Buňka typ A student"},{"$f":"'Rozpis úklidu'!D52","v":10},{"$f":"'Rozpis úklidu'!F52","v":"ročně"},0,{"$f":"'Rozpis úklidu'!L52","v":"Úklidová činnost č. 6"},{"$f":"IF('Rozpis úklidu'!N52<>0,'Rozpis úklidu'!N52,'Rozpis úklidu'!M52)*D53/60","v":0}]
[{"$f":"'Rozpis úklidu'!A53","v":"Pokoj A Buňka typ B student"},{"$f":"'Rozpis úklidu'!D53","v":10},{"$f":"'Rozpis úklidu'!F53","v":"ročně"},0,{"$f":"'Rozpis úklidu'!L53","v":"Úklidová činnost č. 6"},{"$f":"IF('Rozpis úklidu'!N53<>0,'Rozpis úklidu'!N53,'Rozpis úklidu'!M53)*D54/60","v":0}]
[{"$f":"'Rozpis úklidu'!A54","v":"Pokoj B - Buňka typ B student"},{"$f":"'Rozpis úklidu'!D54","v":10},{"$f":"'Rozpis úklidu'!F54","v":"ročně"},0,{"$f":"'Rozpis úklidu'!L54","v":"Úklidová činnost č. 6"},{"$f":"IF('Rozpis úklidu'!N54<>0,'Rozpis úklidu'!N54,'Rozpis úklidu'!M54)*D55/60","v":0}]
[{"$f":"'Rozpis úklidu'!A55","v":"Pokoj C - Buňka typ B student"},{"$f":"'Rozpis úklidu'!D55","v":10},{"$f":"'Rozpis úklidu'!F55","v":"ročně"},0,{"$f":"'Rozpis úklidu'!L55","v":"Úklidová činnost č. 6"},{"$f":"IF('Rozpis úklidu'!N55<>0,'Rozpis úklidu'!N55,'Rozpis úklidu'!M55)*D56/60","v":0}]
[{"$f":"'Rozpis úklidu'!A56","v":"Chodba + kuchyňka - Buňka typ A student"},{"$f":"'Rozpis úklidu'!D56","v":10},{"$f":"'Rozpis úklidu'!F56","v":"sezonně"},0,{"$f":"'Rozpis úklidu'!L56","v":"Úklidová činnost č. 5"},{"$f":"IF('Rozpis úklidu'!N56<>0,'Rozpis úklidu'!N56,'Rozpis úklidu'!M56)*D57/60","v":0}]
[{"$f":"'Rozpis úklidu'!A57","v":"Sociální zařízení + WC - Buňka typ A student"},{"$f":"'Rozpis úklidu'!D57","v":10},{"$f":"'Rozpis úklidu'!F57","v":"sezonně"},0,{"$f":"'Rozpis úklidu'!L57","v":"Úklidová činnost č. 14; 15"},{"$f":"IF('Rozpis úklidu'!N57<>0,'Rozpis úklidu'!N57,'Rozpis úklidu'!M57)*D58/60","v":0}]
[{"$f":"'Rozpis úklidu'!A58","v":"Chodba + kuchyňka - Buňka typ A  HOTEL"},{"$f":"'Rozpis úklidu'!D58","v":10},{"$f":"'Rozpis úklidu'!F58","v":"sezonně"},0,{"$f":"'Rozpis úklidu'!L58","v":"Úklidová činnost č. 5"},{"$f":"IF('Rozpis úklidu'!N58<>0,'Rozpis úklidu'!N58,'Rozpis úklidu'!M58)*D59/60","v":0}]
[{"$f":"'Rozpis úklidu'!A59","v":"Sociální zařízení + WC - Buňka typ A  HOTEL"},{"$f":"'Rozpis úklidu'!D59","v":10},{"$f":"'Rozpis úklidu'!F59","v":"sezonně"},0,{"$f":"'Rozpis úklidu'!L59","v":"Úklidová činnost č. 14; 15"},{"$f":"IF('Rozpis úklidu'!N59<>0,'Rozpis úklidu'!N59,'Rozpis úklidu'!M59)*D60/60","v":0}]
[{"$f":"'Rozpis úklidu'!A60","v":"Chodba + kuchyňka - Buňka typ B student"},{"$f":"'Rozpis úklidu'!D60","v":10},{"$f":"'Rozpis úklidu'!F60","v":"sezonně"},0,{"$f":"'Rozpis úklidu'!L60","v":"Úklidová činnost č. 5"},{"$f":"IF('Rozpis úklidu'!N60<>0,'Rozpis úklidu'!N60,'Rozpis úklidu'!M60)*D61/60","v":0}]
[{"$f":"'Rozpis úklidu'!A61","v":"Sociální zařízení - Buňka typ B student"},{"$f":"'Rozpis úklidu'!D61","v":10},{"$f":"'Rozpis úklidu'!F61","v":"sezonně"},0,{"$f":"'Rozpis úklidu'!L61","v":"Úklidová činnost č. 14; 15"},{"$f":"IF('Rozpis úklidu'!N61<>0,'Rozpis úklidu'!N61,'Rozpis úklidu'!M61)*D62/60","v":0}]
[{"$f":"'Rozpis úklidu'!A62","v":"Chodba + kuchyňka - Buňka typ B  HOTEL"},{"$f":"'Rozpis úklidu'!D62","v":10},{"$f":"'Rozpis úklidu'!F62","v":"sezonně"},0,{"$f":"'Rozpis úklidu'!L62","v":"Úklidová činnost č. 5"},{"$f":"IF('Rozpis úklidu'!N62<>0,'Rozpis úklidu'!N62,'Rozpis úklidu'!M62)*D63/60","v":0}]
[{"$f":"'Rozpis úklidu'!A63","v":"Sociální zařízení - Buňka typ B  HOTEL"},{"$f":"'Rozpis úklidu'!D63","v":10},{"$f":"'Rozpis úklidu'!F63","v":"sezonně"},0,{"$f":"'Rozpis úklidu'!L63","v":"Úklidová činnost č. 14; 15"},{"$f":"IF('Rozpis úklidu'!N63<>0,'Rozpis úklidu'!N63,'Rozpis úklidu'!M63)*D64/60","v":0}]
[{"$f":"'Rozpis úklidu'!A64","v":"Pokoj  A - Buňka typ A HOTEL"},{"$f":"'Rozpis úklidu'!D64","v":9},{"$f":"'Rozpis úklidu'!F64","v":"sezonně"},0,{"$f":"'Rozpis úklidu'!L64","v":"Úklidová činnost č. 9"},{"$f":"IF('Rozpis úklidu'!N64<>0,'Rozpis úklidu'!N64,'Rozpis úklidu'!M64)*D65/60","v":0}]
[{"$f":"'Rozpis úklidu'!A65","v":"Pokoj B - Buňka typ A HOTEL"},{"$f":"'Rozpis úklidu'!D65","v":9},{"$f":"'Rozpis úklidu'!F65","v":"sezonně"},0,{"$f":"'Rozpis úklidu'!L65","v":"Úklidová činnost č. 9"},{"$f":"IF('Rozpis úklidu'!N65<>0,'Rozpis úklidu'!N65,'Rozpis úklidu'!M65)*D66/60","v":0}]
[{"$f":"'Rozpis úklidu'!A66","v":"Pokoj C - Buňka typ A HOTEL"},{"$f":"'Rozpis úklidu'!D66","v":9},{"$f":"'Rozpis úklidu'!F66","v":"sezonně"},0,{"$f":"'Rozpis úklidu'!L66","v":"Úklidová činnost č. 9"},{"$f":"IF('Rozpis úklidu'!N66<>0,'Rozpis úklidu'!N66,'Rozpis úklidu'!M66)*D67/60","v":0}]
[{"$f":"'Rozpis úklidu'!A67","v":"Chodba + kuchyňka Pokoj A - Buňka typ A HOTEL"},{"$f":"'Rozpis úklidu'!D67","v":9},{"$f":"'Rozpis úklidu'!F67","v":"sezonně"},0,{"$f":"'Rozpis úklidu'!L67","v":"Úklidová činnost č. 5"},{"$f":"IF('Rozpis úklidu'!N67<>0,'Rozpis úklidu'!N67,'Rozpis úklidu'!M67)*D68/60","v":0}]
[{"$f":"'Rozpis úklidu'!A68","v":"Sociální zařízení + WC - Buňka typ A HOTEL"},{"$f":"'Rozpis úklidu'!D68","v":9},{"$f":"'Rozpis úklidu'!F68","v":"sezonně"},0,{"$f":"'Rozpis úklidu'!L68","v":"Úklidová činnost č. 14; 15"},{"$f":"IF('Rozpis úklidu'!N68<>0,'Rozpis úklidu'!N68,'Rozpis úklidu'!M68)*D69/60","v":0}]
[{"$f":"'Rozpis úklidu'!A69","v":"Pokoj A - Buňka typ B HOTEL"},{"$f":"'Rozpis úklidu'!D69","v":10},{"$f":"'Rozpis úklidu'!F69","v":"sezonně"},0,{"$f":"'Rozpis úklidu'!L69","v":"Úklidová činnost č. 9"},{"$f":"IF('Rozpis úklidu'!N69<>0,'Rozpis úklidu'!N69,'Rozpis úklidu'!M69)*D70/60","v":0}]
[{"$f":"'Rozpis úklidu'!A70","v":"Pokoj B - Buňka typ B HOTEL"},{"$f":"'Rozpis úklidu'!D70","v":10},{"$f":"'Rozpis úklidu'!F70","v":"sezonně"},0,{"$f":"'Rozpis úklidu'!L70","v":"Úklidová činnost č. 9"},{"$f":"IF('Rozpis úklidu'!N70<>0,'Rozpis úklidu'!N70,'Rozpis úklidu'!M70)*D71/60","v":0}]
[{"$f":"'Rozpis úklidu'!A71","v":"Pokoj C - Buňka typ B HOTEL"},{"$f":"'Rozpis úklidu'!D71","v":10},{"$f":"'Rozpis úklidu'!F71","v":"sezonně"},0,{"$f":"'Rozpis úklidu'!L71","v":"Úklidová činnost č. 9"},{"$f":"IF('Rozpis úklidu'!N71<>0,'Rozpis úklidu'!N71,'Rozpis úklidu'!M71)*D72/60","v":0}]
[{"$f":"'Rozpis úklidu'!A72","v":"Chodba + kuchyňka - Buňka typ B HOTEL"},{"$f":"'Rozpis úklidu'!D72","v":10},{"$f":"'Rozpis úklidu'!F72","v":"sezonně"},0,{"$f":"'Rozpis úklidu'!L72","v":"Úklidová činnost č. 5"},{"$f":"IF('Rozpis úklidu'!N72<>0,'Rozpis úklidu'!N72,'Rozpis úklidu'!M72)*D73/60","v":0}]
[null,null,null,null,"CELKOVÝ ČAS NA ÚKLID V DANÉM OBDOBÍ:",{"$f":"SUM(F5:F73)","v":1.6944444444444446},"HODIN"]
[null,null,null,null,"Odhad počtu uklízeček na den:",{"$f":"ROUND(F74/7/IF(B3=\"týden\",5,IF(B3=\"měsíc\",21,1)),1)","v":0.2}]

{"sheet":"Činnosti úklidu","index":3,"n_rows":35,"n_cols":2,"rows_kept":35,"cut":false,"hidden":false,"merged":[[0,0,0,1]]}
["Úklidová činnost"]
[null,"Úklidová činnost probíhá v čase od 08:00 hod. do 16:30 hod. v jednosměnném provozu v pětidenním pracovním týdnu, úklid hotelových pokojů musí být dle potřeby zajištěn i o víkendu a státních svátcích. V době nastěhování a vystěhování studentů koncem letního semestru a začátkem zimního semestru stanovuje dobu pro úklid podle aktuálních potřeb vedoucí/zástupce vedoucí koleje a to včetně úklidu o víkendu. Při úklidu je potřeba používat úklidové, čistící a desinfekční prostředky vhodné pro daný předmět úklidu a dodržovat návody na použití příslušných úklidových, čistících a desinfekčních prostředků a bezpečnostní a hygienická pravidla"]
["Definice pojmů:"]
["Zametání","pomocí vhodného smetáku zamést dané podlahové plochy."]
["Vytírání ","pomocí mopu za použití vody a odpovídajícího saponátu vytřít dané podlahové plochy."]
["Mytí ","pomocí hadru, utěrky nebo houbičky, za použití vody a odpovídajícího saponátu, umýt plochy nábytku, dveří, spotřebičů, keramických a jiných obkladů, topení apod."]
["Čištění ","důkladné čištění, zvláště skvrn, za pomocí odpovídajících čisticích prostředků, ploch nábytku, dveří, spotřebičů, keramických a jiných obkladů, topení apod."]
["Desinfekce ","po umytí nebo vyčištění daných ploch, podlah, spotřebičů aj. použít podle návodu odpovídající desinfekční prostředek."]
["Leštění ","leštění všech skleněných a zrcadlových ploch za použití odpovídajícího přípravku na mytí a leštění skel."]
["Luxování ","čištění podlah za použití vysavače."]
["Strojové čištění ","se provádí za použití čistícího stroje na vodní nebo parní bázi (strojové čištění postelí, matrací, koberců apod.)."]
["Stírání prachu","setření prachu vhodnou utěrkou za použití odpovídajícího přípravku na odstranění prachu, odstranění pavučin."]
["Úklid odpadů ","řádné uvolnění, umytí, vyčištění a vydesinfikování odpadů na soc. zařízeních, WC, umývárnách a sprchových koutech za použití odpovídajících přípravků."]
["Mimořádný úklid ","úklid znečištěného WC (mimo mísu), umývárny nebo společných prostor zvratky nebo exkrementy (uklízečka vyrozumí vedoucí/zástupce vedoucí koleje)."]
["Mytí oken ","umytí parapetů na mokro za použití odpovídajícího saponátu, umytí rámů oken na mokro za použití odpovídajícího saponátu, umytí a vyleštění oken odpovídajícím přípravkem na mytí a leštění oken."]
["Zalévání květin ","zalití květin čistou odstátou vodou v přiměřeném množství s ohledem na druh rostliny. Podle potřeby použít odpovídající hnojivo v dávkování podle návodu k použití."]
["Vynášení a likvidace odpadu","vynesení odpadu ze všech odpadních nádob (i z prostoru okolo těchto nádob), a ze skartovaček, umytí odpadních nádob a doplnění pytlů na odpadky do odpadních nádob. Odpad dle možnosti vhodným způsobem třídit."]
["Doplňování hotelových potřeb ","v hotelovém provozu doplnit toaletní papír do zásobníků doplnit ručníky a hotelové mýdlo."]
[]
["Číslo typové činnosti","Popis typových pracovních činností:"]
["1.","Úklidem společných prostor, podlah chodeb, schodišť a vestibulu se rozumí:\nzamést a vytřít podlahy, odstranit našlapané žvýkačky a jiné nečistoty, vyluxovat podlahy kryté kobercem. Umýt parapety, zábradlí a hasicí přístroje umístěné na chodbách, vyleštit skleněné plochy na chodbách a ve vestibulech, setřít prach a pavučiny. Sepsat a nahlásit vedení koleje všechny závady a škody."]
["2.","Úklidem balkonů se rozumí: \nzamést a vytřít podlahy, odstranit našlapané žvýkačky a jiné nečistoty, umýt parapety a zábradlí. Odstranit pavučiny. Vynést odpady a popř. i vysypat popelníky."]
["3.","Úklidem společenských, (studoven, kluboven apod.) zájmových (posiloven, tělocvičen apod.) a zasedacích místností, kanceláří, skladů, šaten a výtahů se rozumí:\nzamést a vytřít podlahy, podlahy pokryté kobercem vyluxovat, setřít prach a pavučiny ze všech dosažitelných a volně přístupných míst a zařízení místností (topení, cvičební nářadí apod.), umýt a vyčistit skvrny kolem klik, dveří, vypínačů a světel. Srovnat nábytek a jiné vybavení místností. Srovnat nebo dověsit záclony a závěsy. Vyleštit zrcadla. Vynést odpad. Sepsat a nahlásit vedení koleje všechny závady a škody."]
["4.","Úklidem prádelen se rozumí:\nzamést a vytřít podlahy, setřít prach a pavučiny ze všech dosažitelných a volně přístupných míst a zařízení místností (praček, topení, apod.). Vyčistit filtry praček, vyčistit zásobníky na prášek. Umýt a vyčistit dveře, kliky, vypínače a světla. Srovnat nebo dověsit záclony a závěsy. Vyleštit zrcadla. Vynést odpad. Sepsat a nahlásit vedení koleje všechny závady a škody."]
["5.","Úklidem kuchyněk se rozumí:\numýt, vyčistit a vydesinfikovat sporák, vařič, mikrovlnnou troubu, digestoř, pracovní desky a zařízení místnosti kuchyňky. Umýt, vyčistit a vydesinfikovat obklady. Pokud je kuchyňka vybavena nádobím umýt nádobí. Odmrazit a vyčistit lednici. Odstranit všechny prošlé nebo kazící se potraviny. Zamést a vytřít podlahy. Vynést odpad. Setřít prach a pavučiny. Sepsat a nahlásit vedení koleje všechny závady a škody."]
["6.","Generálním úklidem pokojů po odchodu studentů se rozumí:\numýt nábytek z venku (postele, stoly, židle, police, skříně apod.) i zevnitř (skříně, šuplíky, peřináče, postele apod.) a vyčistit od skvrn. Vyleštit zrcadla a okna. Vyluxovat/strojově vyčistit matrace postelí. Setřít prach a pavučiny (včetně žaluzií). Umýt a vyčistit veškeré obložení, lišty, obrazy, dveře, kliky, rámy oken, parapety, vypínače, zásuvky, topení, světla, lampičky apod. Umýt ledničku zevnitř i zvenku. Zamést a vytřít podlahy, podlahy kryté kobercem vyluxovat, a to i pod a za postelí, křesly a závěsy. Srovnat nebo dověsit záclony a závěsy, srovnat nábytek a jiné vybavení pokoje. Vynést odpad, umýt, otřít a vyleštit odpadkový koš. Zlikvidovat případné komáry a mouchy. Vyvětrat a popř. i navonět. Sepsat a nahlásit vedení koleje všechny závady a škody. Případné nalezené věci po ubytovaných předat vedení koleje."]
["7.","Úklidem předsíní buněk se rozumí:\núklid sociálního zařízení podle bodu 14. a 15. úklid kuchyňky podle bodu 5. Zamést a vytřít podlahy. Umýt a vyčistit pracovní plochy a nábytek. Setřít prach a pavučiny. Vynést odpad. Sepsat a nahlásit vedení koleje všechny závady a škody."]
["8.","Úklidem hotelových pokojů po vystěhování se rozumí:\numýt nábytek z venku (postele, stoly, židle, police, skříně apod.) i zevnitř (skříně, šuplíky, peřináče, postele apod.) a vyčistit od skvrn. Doplnit ramínka. Vyleštit zrcadla a okna. Převléct a ustlat postele, vyluxovat/strojově vyčistit matrace postelí. Setřít prach a pavučiny (včetně žaluzií). Umýt a vyčistit veškeré obložení, lišty, obrazy, dveře, kliky, rámy oken, parapety, vypínače, zásuvky, televizi, topení, světla, lampičky apod.)  Umýt kuchyňku (dřez, skříňky, nádobí, mikrovlnnou troubu, vařič, rychlovarnou konvici). Umýt nádobí. Umýt ledničku zevnitř i zvenku. Zamést a vytřít podlahy, podlahy kryté kobercem vyluxovat, a to i pod a za postelí, křesly a závěsy. Srovnat nebo dověsit záclony a závěsy, srovnat nábytek a jiné vybavení pokoje. Vynést odpad, umýt, otřít a vyleštit odpadkový koš. Zlikvidovat případné komáry a mouchy. Doplnit hotelové potřeby (toaletní papír, mýdlo, apod.). Vyvětrat a popř. i navonět. Vyměnit ložní prádlo. Předat složené použité prádlo a ručníky skladní. Sepsat a nahlásit vedení koleje všechny závady a škody. Doplnit chybějící inventář.  Případné nalezené věci po hostech předat vedení koleje."]
["9.","Úklidem hotelových pokojů v průběhu ubytování se rozumí:\nustlání postelí, popř. výměna ložního prádla každý 4. den pobytu, výměna osušek a ručníků, doplnění toaletního papíru, vynesení odpadků, umytí koupelny (sprchový kout, WC, umyvadlo), vytření podlahy."]
["10.","Přebráním uklizeného pokoje po studentech se rozumí:\npodle bodu 6. a 7. zkontrolovat úklid provedený studenty. Přebrat klíče od pokoje. Podepsat potvrzení o řádně provedeném úklidu a odevzdání klíčů. Sepsat a nahlásit vedení koleje všechny závady a škody. V případě nutnosti upozornit studenty na nedostatky v úklidu s tím, že je musí ve stanovené době odstranit, po té provést novou kontrolu úklidu. V případě, že ani napodruhé nebude pokoj řádně uklizen nahlásit tuto skutečnost vedení koleje."]
["11.","Úklidem výtahu se rozumí:\nzametení a vytření podlahy, vyčištění dveřních drážek, mytí stěn, mytí světel, jsou li instalována vyleštění zrcadel."]
["12.","Mytím oken se rozumí:\nmytí a leštění skel, mytí rámů, mytí parapetu, jsou-li instalovány setření žaluzií."]
["13.","Čištěním matrací:\nvyčištění matrací parním strojem."]
["14.","Úklidem WC se rozumí:\numýt, vyčistit a vydesinfikovat místnost WC, umýt záchodovou mísu zevnitř i zvenku umýt nohu a trubku za WC, umýt prkýnko a nádobu na splachovací vodu, popř. umýt pisoáry, umyvadla, baterie, obklady, odpady, podlahy a dveře. Otřít držák na toaletní papír. Umýt dlaždičky a silikon od plísně. Vylít vodu a otřít pouzdro na WC štětku. Vyleštit zrcadla. Vynést odpad. Setřít prach a pavučiny. Vždy za použití odpovídajícího mycího/čistícího přípravku."]
["15.","Úklidem koupelen a sprch se rozumí:\numýt, vyčistit a vydesinfikovat umyvadlo zevnitř i zvenku včetně trubek pod ním, baterie, sprchový kout, obklady, poličku nad umyvadlem i ve sprchovém koutě, odpady, podlahy a dveře. Umýt stěny sprchového koutu, gumové těsnění popř. závěs sprchového koutu. Odstranit rez a vodní kámen. Vynést odpad. Vyleštit zrcadlo, poličku, sprchu a držák na sprchu. Umýt dlaždičky a silikon od plísně. Vynést odpad. Setřít prach a pavučiny. Vždy za použití odpovídajícího mycího/čistícího přípravku"]